bitfinex/quotes_SOLUSD_20260125
["timestamp","ask_amount","ask_price","bid_price","bid_amount"]
[1769358428343,5.22932112,122.71,122.66,9.36448236]
[1769358428652,5.22932112,122.71,122.65,9.36448236]
[1769358428853,5.22932112,122.7,122.65,4.13516124]
[1769358429653,5.22932112,122.68,122.63,4.13516124]
[1769358429951,5.22932112,122.7,122.65,4.13516124]
[1769358430149,5.22932112,122.71,122.66,4.13516124]
[1769358430556,10.57340968,122.72,122.67,4.13516124]
[1769358430726,5.22932112,122.72,122.67,4.13516124]
[1769358431947,10.57340968,122.73,122.67,4.13516124]
[1769358432153,5.22932112,122.71,122.66,4.13516124]
[1769358432455,5.22932112,122.72,122.67,4.13516124]
[1769358432630,5.22932112,122.72,122.68,4.13516124]
[1769358433749,5.22932112,122.7,122.68,4.13516124]
[1769358433942,5.22932112,122.71,122.68,4.13516124]
[1769358434742,5.22932112,122.7,122.65,4.16084109]
[1769358434940,2.63223161,122.7,122.65,4.16084109]
[1769358435144,5.22932112,122.7,122.65,4.16084109]
[1769358435642,2.63223161,122.72,122.64,9.39016221]
[1769358435833,5.22932112,122.71,122.65,4.16084109]
[1769358436343,2.63223161,122.72,122.65,8.15288903]
[1769358436550,5.22932112,122.7,122.66,4.16084109]
[1769358437250,5.22932112,122.69,122.64,4.16084109]
[1769358437830,5.22932112,122.68,122.64,4.16084109]
[1769358438051,5.22932112,122.67,122.64,4.16084109]
[1769358438846,5.22932112,122.68,122.64,4.16084109]
[1769358441451,2.63223161,122.7,122.64,4.16084109]
[1769358441452,5.22932112,122.69,122.64,4.16084109]
[1769358441653,5.22932112,122.68,122.64,4.16084109]
[1769358441839,5.34408856,122.71,122.65,4.16084109]
[1769358442044,5.34408856,122.71,122.63,4.16084109]
[1769358442045,5.22932112,122.68,122.63,4.16084109]
[1769358443532,7.86155273,122.69,122.63,5.22932112]
[1769358443732,7.86155273,122.68,122.62,12.3157501]
[1769358443959,5.22932112,122.68,122.63,4.16084109]
[1769358444558,5.22932112,122.69,122.65,4.16084109]
[1769358444939,5.22932112,122.7,122.65,4.16084109]
[1769358445159,2.63223161,122.65,122.59,4.16084109]
[1769358445360,2.63223161,122.65,122.6,4.16084109]
[1769358445361,5.22932112,122.64,122.6,4.16084109]
[1769358445547,5.22932112,122.65,122.6,4.16084109]
[1769358445938,5.34408856,122.67,122.61,4.16084109]
[1769358446154,5.22932112,122.66,122.62,4.16084109]
[1769358448741,16.12722172,122.69,122.62,4.16084109]
[1769358448954,5.22932112,122.67,122.62,4.16084109]
[1769358450350,5.22932112,122.66,122.62,4.16084109]
[1769358451765,5.22932112,122.65,122.62,4.16084109]
[1769358452764,5.22932112,122.66,122.62,4.16084109]
[1769358453855,5.22932112,122.65,122.62,4.16084109]
[1769358454246,7.86155273,122.67,122.62,4.16084109]
[1769358454867,5.22932112,122.66,122.62,4.16084109]
[1769358455185,2.63223161,122.66,122.61,4.25271781]
[1769358455343,5.22932112,122.65,122.61,4.25271781]
[1769358455863,5.22932112,122.64,122.59,12.40970072]
[1769358456170,5.22932112,122.64,122.59,4.25271781]
[1769358456480,5.22932112,122.63,122.59,4.25271781]
[1769358456658,5.22932112,122.65,122.6,4.25271781]
[1769358456972,5.22932112,122.61,122.58,4.25271781]
[1769358457174,5.22932112,122.6,122.57,4.45271781]
[1769358457347,5.22932112,122.61,122.57,4.45271781]
[1769358457764,5.22932112,122.6,122.57,4.45271781]
[1769358458365,2.63223161,122.62,122.57,4.45271781]
[1769358458585,5.22932112,122.61,122.57,4.45271781]
[1769358459668,2.63223161,122.65,122.58,4.25271781]
[1769358459972,5.22932112,122.64,122.59,4.25271781]
[1769358460882,5.34408856,122.67,122.6,4.25271781]
[1769358460883,8.15200529,122.67,122.6,4.25271781]
[1769358461068,5.22932112,122.64,122.6,4.25271781]
[1769358461381,5.22932112,122.65,122.6,4.25271781]
[1769358461781,5.22932112,122.66,122.61,4.25271781]
[1769358461991,5.22932112,122.67,122.62,4.25271781]
[1769358462973,5.22932112,122.66,122.62,4.25271781]
[1769358463375,5.22932112,122.65,122.6,4.25271781]
[1769358463885,2.63223161,122.66,122.61,4.25271781]
[1769358464088,5.22932112,122.65,122.61,4.25271781]
[1769358464597,5.22932112,122.67,122.62,4.25271781]
[1769358465064,7.86155273,122.68,122.63,4.25271781]
[1769358465264,5.22932112,122.68,122.63,4.25271781]
[1769358466381,5.22932112,122.68,122.64,4.25271781]
[1769358466582,5.22932112,122.7,122.65,4.25271781]
[1769358466973,2.63223161,122.71,122.58,4.25271781]
[1769358466974,5.22932112,122.66,122.58,4.25271781]
[1769358467189,5.22932112,122.65,122.6,4.25271781]
[1769358468370,2.63223161,122.69,122.61,4.25271781]
[1769358468570,5.22932112,122.65,122.62,4.25271781]
[1769358468782,5.22932112,122.66,122.62,4.25271781]
[1769358468996,5.22932112,122.65,122.62,4.25271781]
[1769358469173,2.63223161,122.66,122.6,4.25271781]
[1769358469174,5.22932112,122.64,122.6,4.25271781]
[1769358469585,5.22932112,122.65,122.6,4.25271781]
[1769358469902,7.86155273,122.61,122.57,0.2]
[1769358470198,2.63223161,122.61,122.57,0.2]
[1769358470383,5.22932112,122.59,122.57,0.2]
[1769358472387,5.22932112,122.6,122.57,0.2]
[1769358472893,2.63223161,122.63,122.57,4.45271781]
[1769358473091,5.22932112,122.62,122.57,4.45271781]
[1769358473393,5.22932112,122.63,122.58,4.25271781]
[1769358474072,2.63223161,122.64,122.58,4.25271781]
[1769358474393,5.22932112,122.63,122.58,4.25271781]
[1769358474582,5.22932112,122.62,122.58,4.25271781]
[1769358475471,5.22932112,122.63,122.59,4.25271781]
[1769358475675,5.23435442,122.63,122.59,4.25271781]
[1769358476478,5.23435442,122.65,122.59,4.25271781]
[1769358476697,5.23435442,122.65,122.59,12.40991252]
[1769358476897,5.23435442,122.66,122.61,4.25271781]
[1769358477773,7.86658603,122.66,122.61,4.25271781]
[1769358478404,5.23435442,122.65,122.61,4.25271781]
[1769358479000,5.23435442,122.64,122.61,4.25271781]
[1769358479298,5.23435442,122.65,122.61,4.25271781]
[1769358480274,5.23435442,122.64,122.61,4.25271781]
[1769358480470,5.23435442,122.65,122.61,4.25271781]
[1769358480875,5.23435442,122.64,122.61,4.25271781]
[1769358481275,5.23435442,122.63,122.61,4.25271781]
[1769358481477,5.23435442,122.63,122.57,13.59266739]
[1769358481478,5.23435442,122.63,122.58,4.25271781]
[1769358482281,2.63223161,122.66,122.59,4.25271781]
[1769358482476,5.23435442,122.64,122.59,4.25271781]
[1769358482678,5.23435442,122.64,122.6,4.25271781]
[1769358483395,2.63223161,122.66,122.6,4.25271781]
[1769358483571,25.72087331,122.69,122.6,12.40909667]
[1769358483572,5.23435442,122.65,122.6,12.40909667]
[1769358483773,5.23435442,122.7,122.64,4.44364]
[1769358484016,7.86658603,122.72,122.66,4.44364]
[1769358484177,5.23435442,122.69,122.61,4.44364]
[1769358484504,5.23435442,122.7,122.65,4.44364]
[1769358484799,2.63223161,122.72,122.65,4.44364]
[1769358484975,2.63223161,122.72,122.67,4.44364]
[1769358484976,5.23435442,122.72,122.67,4.44364]
[1769358485171,5.23435442,122.73,122.68,4.44364]
[1769358485384,5.23435442,122.74,122.68,5.23435442]
[1769358485595,5.23435442,122.75,122.7,4.44364]
[1769358485788,0.1,122.76,122.71,4.44364]
[1769358485992,0.1,122.76,122.72,4.44364]
[1769358487188,0.1,122.77,122.74,4.44364]
[1769358487494,5.33435442,122.77,122.74,4.44364]
[1769358487697,5.23435442,122.76,122.74,4.44364]
[1769358488098,5.23435442,122.75,122.69,4.44364]
[1769358488403,5.23435442,122.71,122.68,4.44364]
[1769358488698,5.23435442,122.72,122.68,4.44364]
[1769358488905,5.23435442,122.74,122.69,4.44364]
[1769358489104,5.23435442,122.73,122.69,4.44364]
[1769358489282,0.1,122.77,122.67,4.44364]
[1769358489283,5.23435442,122.71,122.67,4.44364]
[1769358489594,5.23435442,122.76,122.67,4.44364]
[1769358489800,4.25773581,122.75,122.69,9.67799442]
[1769358489990,4.25773581,122.75,122.7,4.44364]
[1769358490296,4.25773581,122.75,122.71,4.44364]
[1769358490476,5.23435442,122.75,122.71,4.44364]
[1769358492490,5.23435442,122.74,122.71,4.44364]
[1769358492990,5.23435442,122.75,122.71,4.44364]
[1769358494196,2.83123161,122.77,122.71,4.44364]
[1769358494403,5.23435442,122.75,122.71,4.44364]
[1769358495481,5.23435442,122.76,122.71,4.44364]
[1769358495685,5.33435442,122.77,122.72,4.21565534]
[1769358495882,0.1,122.77,122.72,4.21565534]
[1769358496189,0.1,122.77,122.73,4.21565534]
[1769358500088,4.25684648,122.78,122.75,4.21565534]
[1769358500295,4.25684648,122.78,122.74,4.21565534]
[1769358500483,5.23435442,122.77,122.74,4.21565534]
[1769358501989,9.4901841,122.78,122.74,4.21565534]
[1769358502699,4.25582968,122.78,122.74,4.21565534]
[1769358503313,5.23435442,122.81,122.76,4.21565534]
[1769358503517,0.1,122.83,122.78,4.21565534]
[1769358504021,5.33435442,122.83,122.78,4.21565534]
[1769358504311,0.1,122.83,122.78,4.21565534]
[1769358504494,5.33435442,122.83,122.78,4.21565534]
[1769358504693,9.52794914,122.83,122.78,4.21565534]
[1769358505108,4.29359472,122.83,122.78,4.21565534]
[1769358505309,5.23435442,122.82,122.78,4.21565534]
[1769358505496,9.52794914,122.83,122.78,4.21565534]
[1769358506019,4.29359472,122.83,122.78,4.21565534]
[1769358506314,9.42794914,122.85,122.79,4.21565534]
[1769358506496,9.42794914,122.85,122.79,9.45000976]
[1769358506691,9.42794914,122.85,122.8,4.21565534]
[1769358507298,9.42794914,122.84,122.8,4.21565534]
[1769358507497,5.23435442,122.83,122.8,4.21565534]
[1769358508415,5.23435442,122.83,122.75,20.36627376]
[1769358508416,5.23435442,122.81,122.76,4.21565534]
[1769358508614,9.42794914,122.82,122.76,4.21565534]
[1769358508815,5.23435442,122.81,122.76,4.21565534]
[1769358509619,9.42794914,122.82,122.77,4.21565534]
[1769358509814,5.23435442,122.83,122.78,4.21565534]
[1769358510117,4.19359472,122.9,122.83,4.21565534]
[1769358510325,4.19359472,122.9,122.86,4.21565534]
[1769358510823,0.1,122.91,122.87,4.21565534]
[1769358511815,9.42794914,122.9,122.85,4.21565534]
[1769358512018,0.1,122.91,122.84,4.21565534]
[1769358512019,4.19359472,122.88,122.84,4.21565534]
[1769358513703,9.30923244,122.9,122.84,4.21565534]
[1769358513904,9.30923244,122.9,122.84,9.45000976]
[1769358514122,4.07487802,122.9,122.85,4.30535524]
[1769358514297,9.40923244,122.91,122.85,4.30535524]
[1769358514811,9.40923244,122.91,122.86,4.30535524]
[1769358515923,4.17487802,122.91,122.86,4.30535524]
[1769358516341,9.40923244,122.91,122.86,4.30535524]
[1769358517222,5.23435442,122.9,122.86,4.30535524]
[1769358517415,9.40923244,122.91,122.86,4.30535524]
[1769358518625,4.17487802,122.91,122.87,4.30535524]
[1769358518829,0.1,122.91,122.88,4.30535524]
[1769358520026,43.57700819,122.96,122.89,4.30535524]
[1769358520027,5.23435442,122.95,122.89,4.30535524]
[1769358520208,9.30923244,122.94,122.9,4.30535524]
[1769358520708,30.1,122.96,122.91,4.30535524]
[1769358521114,30.1,122.96,122.93,4.30535524]
[1769358521328,39.40923244,122.96,122.91,4.30535524]
[1769358521725,34.17487802,122.96,122.92,4.30535524]
[1769358522032,30.1,122.96,122.92,4.30535524]
[1769358522403,30.1,122.96,122.93,4.30535524]
[1769358524027,23.66817038,122.96,122.94,4.30535524]
[1769358524611,0.1,122.99,122.96,5.23435442]
[1769358525012,0.1,122.99,122.95,5.23435442]
[1769358525509,0.1,122.99,122.97,13.36641915]
[1769358525832,1e-08,122.99,122.97,13.36641915]
[1769358526024,30.42268924,123.01,122.98,5.23435442]
[1769358526223,30.42268924,123.01,122.97,8.13206473]
[1769358526418,30.42268924,123.01,122.98,5.23435442]
[1769358526622,0.1,123.04,122.99,5.23435442]
[1769358526827,0.1,123.04,123.0,5.23435442]
[1769358527128,0.1,123.04,123.01,5.23435442]
[1769358527634,0.1,123.04,123.01,13.36376156]
[1769358528231,0.1,123.04,123.02,5.23435442]
[1769358528232,1e-08,123.04,123.02,5.23435442]
[1769358529930,4.50000001,123.04,122.99,5.23435442]
[1769358530135,1e-08,123.04,122.99,5.23435442]
[1769358530307,1e-08,123.04,122.99,13.3646164]
[1769358530504,1e-08,123.04,123.0,8.12999074]
[1769358530709,1e-08,123.04,123.01,13.36371084]
[1769358530921,1e-08,123.04,123.02,5.23435442]
[1769358531434,0.3767749,123.08,123.03,5.23435442]
[1769358531614,4.8767749,123.08,123.03,5.23435442]
[1769358531818,4.5,123.06,122.99,8.13033736]
[1769358532021,4.5,123.05,123.0,5.23435442]
[1769358532215,4.5,123.03,122.98,5.23435442]
[1769358532416,4.5,123.03,122.99,5.23435442]
[1769358533439,4.5,123.03,122.98,5.23435442]
[1769358533652,4.5,123.02,122.97,5.23435442]
[1769358533834,4.5,123.01,122.96,5.23435442]
[1769358535333,4.5,123.0,122.95,13.36772603]
[1769358535645,4.5,123.0,122.95,5.20232822]
[1769358535942,5.20232822,123.01,122.93,27.78232822]
[1769358535943,4.5,122.97,122.93,27.78232822]
[1769358536445,4.5,122.99,122.94,5.20232822]
[1769358536945,4.5,122.97,122.93,27.78232822]
[1769358537345,4.5,123.0,122.95,5.20232822]
[1769358537544,4.5,123.0,122.96,5.20232822]
[1769358538422,4.5,123.0,122.95,5.20232822]
[1769358538631,9.70232822,123.0,122.95,5.20232822]
[1769358538853,4.5,122.99,122.95,5.20232822]
[1769358539522,4.5,122.99,122.89,5.36086188]
[1769358539523,4.5,122.96,122.92,13.33728689]
[1769358539726,4.5,122.96,122.92,8.13495867]
[1769358540027,4.5,122.96,122.92,5.20232822]
[1769358540449,4.5,122.97,122.92,5.20232822]
[1769358541128,4.5,122.97,122.93,5.20232822]
[1769358541729,4.5,122.97,122.92,5.20232822]
[1769358542243,9.70232822,122.99,122.93,5.20232822]
[1769358542430,4.5,122.99,122.94,5.20232822]
[1769358542949,4.5,122.98,122.93,5.20232822]
[1769358543140,9.70232822,122.98,122.93,5.20232822]
[1769358543345,4.5,122.96,122.92,5.20232822]
[1769358543648,5.34408856,123.02,122.9,20.34074585]
[1769358543649,4.5,122.94,122.9,13.3387868]
[1769358544048,4.5,122.94,122.9,8.13645858]
[1769358544535,4.5,122.94,122.9,13.3387868]
[1769358545051,9.70232822,122.96,122.91,5.20232822]
[1769358545236,4.5,122.99,122.94,5.20232822]
[1769358545540,4.5,122.99,122.95,5.20232822]
[1769358546122,4.5,123.0,122.95,5.20232822]
[1769358547235,4.5,123.0,122.95,13.33543194]
[1769358547942,4.5,122.99,122.94,13.33607261]
[1769358548145,4.5,122.98,122.94,13.33607261]
[1769358548647,4.5,122.98,122.93,13.3368312]
[1769358549556,4.5,123.0,122.96,5.20232822]
[1769358549733,4.5,122.99,122.94,5.20232822]
[1769358550141,4.5,122.99,122.95,5.20232822]
[1769358550328,4.5,122.99,122.94,5.20232822]
[1769358550851,4.5,122.98,122.94,5.20232822]
[1769358551055,4.5,122.98,122.93,13.3368312]
[1769358551246,4.5,122.98,122.94,5.20232822]
[1769358551443,4.5,122.97,122.92,5.20232822]
[1769358551649,4.5,122.95,122.91,5.20232822]
[1769358552645,4.5,122.95,122.92,5.20232822]
[1769358552842,4.5,122.95,122.91,5.20232822]
[1769358553250,4.5,122.95,122.88,8.13740991]
[1769358553458,24.48,123.01,122.88,13.33973813]
[1769358553459,4.19249965,122.92,122.88,13.33973813]
[1769358553754,4.19249965,122.9,122.85,22.58]
[1769358553947,4.19249965,122.9,122.87,5.20232822]
[1769358554451,4.19249965,122.9,122.85,8.13994802]
[1769358554757,4.37891438,122.89,122.85,5.20232822]
[1769358555143,4.37891438,122.89,122.83,24.77456986]
[1769358555455,4.37891438,122.89,122.85,5.20232822]
[1769358555857,4.37891438,122.89,122.86,5.20232822]
[1769358556052,4.37891438,122.89,122.85,5.20232822]
[1769358556838,4.37891438,122.89,122.84,13.34258452]
[1769358557341,4.37891438,122.88,122.83,17.76548878]
[1769358557841,4.37891438,122.88,122.84,9.62428422]
[1769358558067,4.37891438,122.89,122.85,5.20232822]
[1769358558657,4.37891438,122.89,122.82,12.76374708]
[1769358558959,8.13604138,122.91,122.82,9.82428422]
[1769358558960,4.37891438,122.86,122.82,9.82428422]
[1769358559169,4.37891438,122.85,122.82,0.2]
[1769358559769,10.54641678,122.92,122.85,12.56191286]
[1769358560066,5.20232822,122.9,122.84,17.76479126]
[1769358560271,4.37891438,122.91,122.86,9.62428422]
[1769358560438,4.37891438,122.91,122.87,9.62428422]
[1769358560843,4.37891438,122.91,122.88,5.20232822]
[1769358561041,4.37891438,122.93,122.88,5.20232822]
[1769358561438,4.37891438,122.92,122.88,5.20232822]
[1769358562757,5.34408856,122.95,122.92,4.421956]
[1769358562954,4.37891438,122.99,122.94,5.20232822]
[1769358563162,4.37891438,122.99,122.95,5.20232822]
[1769358563634,4.37891438,122.99,122.96,5.20232822]
[1769358563835,4.37891438,122.99,122.95,5.20232822]
[1769358564152,4.37891438,122.99,122.94,12.555956]
[1769358564356,4.37891438,122.99,122.96,5.20232822]
[1769358566171,4.37891438,122.99,122.93,8.13448953]
[1769358566471,4.37891438,122.98,122.95,5.20232822]
[1769358566668,4.37891438,122.98,122.96,5.20232822]
[1769358567285,4.37891438,122.98,122.95,5.20232822]
[1769358567739,4.37891438,122.98,122.94,5.20232822]
[1769358569567,4.37891438,122.98,122.95,5.20232822]
[1769358570967,8.12899418,123.02,122.97,5.20232822]
[1769358570968,4.37891438,123.02,122.97,5.20232822]
[1769358571152,4.37891438,123.02,122.99,5.20232822]
[1769358571578,4.37891438,123.02,122.98,5.20232822]
[1769358572773,9.5812426,123.02,122.98,5.20232822]
[1769358573169,4.35065495,123.01,122.97,5.20232822]
[1769358573471,4.35065495,123.01,122.98,5.20232822]
[1769358573982,4.35065495,123.03,122.98,9.69226833]
[1769358574185,4.35065495,123.03,122.99,5.20232822]
[1769358574395,9.55298317,123.03,122.98,9.69226833]
[1769358574681,4.35065495,123.02,122.98,9.69226833]
[1769358575775,4.35065495,123.01,122.97,5.20232822]
[1769358576467,4.35065495,123.01,122.97,9.69226833]
[1769358576675,4.35065495,123.01,122.98,5.20232822]
[1769358577255,5.20232822,123.03,122.98,9.69226833]
[1769358577678,4.35065495,123.02,122.98,9.69226833]
[1769358578692,4.35065495,123.01,122.97,9.69226833]
[1769358578859,4.35065495,123.01,122.98,5.20232822]
[1769358580286,30.0,123.04,123.0,4.48994011]
[1769358580485,34.35065495,123.04,123.01,5.20232822]
[1769358580658,4.35065495,123.03,123.0,5.20232822]
[1769358581398,4.35065495,123.03,122.97,4.48994011]
[1769358581399,5.20232822,123.03,122.97,4.48994011]
[1769358581686,4.35065495,123.02,122.98,5.20232822]
[1769358581870,4.35065495,123.02,122.99,5.20232822]
[1769358582276,39.55298317,123.04,122.99,9.69226833]
[1769358582479,4.35065495,123.03,122.99,9.69226833]
[1769358585585,4.35065495,123.02,122.98,5.20232822]
[1769358585988,4.35065495,123.02,122.97,4.48994011]
[1769358586160,4.35065495,123.02,122.98,5.20232822]
[1769358586562,4.35065495,123.02,122.98,9.69226833]
[1769358586873,4.35065495,123.02,122.97,8.13200753]
[1769358586874,4.35065495,123.02,122.96,4.48994011]
[1769358587074,4.35065495,123.02,122.97,9.69226833]
[1769358587389,4.35065495,123.0,122.96,5.20232822]
[1769358587588,4.35065495,123.0,122.96,9.69226833]
[1769358588087,9.55298317,123.01,122.96,9.69226833]
[1769358588980,4.35065495,123.01,122.97,5.20232822]
[1769358589181,4.35065495,123.01,122.97,9.69226833]
[1769358589587,4.35065495,123.03,122.99,9.69226833]
[1769358589964,34.35065495,123.04,123.0,4.48994011]
[1769358590280,34.35065495,123.04,123.0,9.69226833]
[1769358590973,34.35065495,123.04,123.02,9.69226833]
[1769358590974,30.0,123.04,123.02,9.69226833]
[1769358593092,30.0,123.04,123.02,5.20232822]
[1769358593284,4.35065495,123.06,123.03,5.20232822]
[1769358594769,4.35065495,123.06,123.02,5.20232822]
[1769358595183,4.35065495,123.05,123.01,5.20232822]
[1769358595386,4.35065495,123.03,122.99,5.20232822]
[1769358595587,4.35065495,123.03,122.98,5.20232822]
[1769358595971,4.35065495,123.03,123.0,5.20232822]
[1769358596201,4.35065495,123.03,122.99,5.20232822]
[1769358596698,4.35065495,123.01,122.97,5.20232822]
[1769358597278,4.35065495,123.01,122.96,4.48994011]
[1769358597492,4.35065495,123.0,122.95,4.48994011]
[1769358597677,4.35065495,123.0,122.97,5.20240509]
[1769358598212,4.35065495,123.02,122.98,5.20240509]
[1769358598606,4.35065495,123.01,122.96,5.20240509]
[1769358599113,4.35065495,123.01,122.97,9.6923452]
[1769358599276,4.35065495,123.01,122.97,5.20240509]
[1769358599702,4.35065495,123.01,122.96,9.6923452]
[1769358599912,5.20240509,122.97,122.91,9.85080199]
[1769358600077,4.35065495,122.96,122.91,9.6923452]
[1769358600276,4.35065495,122.96,122.92,5.20240509]
[1769358600991,9.55306004,122.96,122.91,9.6923452]
[1769358601199,4.35065495,122.96,122.91,17.82826395]
[1769358601512,5.20240509,122.97,122.93,9.6923452]
[1769358601513,4.35065495,122.97,122.93,9.6923452]
[1769358602308,4.35065495,122.96,122.91,4.48994011]
[1769358602509,4.35065495,122.95,122.91,5.20240509]
[1769358602910,9.55306004,123.0,122.95,4.39703016]
[1769358603096,4.265906,122.99,122.95,9.59943525]
[1769358603296,4.265906,123.0,122.95,9.59943525]
[1769358603497,4.265906,122.99,122.95,5.20240509]
[1769358603802,4.265906,122.99,122.93,12.53172586]
[1769358603803,4.265906,122.99,122.94,9.59943525]
[1769358603989,4.265906,123.02,122.97,5.20240509]
[1769358604188,4.265906,123.02,122.98,5.20240509]
[1769358604401,4.265906,122.99,122.94,12.5307002]
[1769358604689,4.265906,122.98,122.94,4.39703016]
[1769358604886,4.265906,122.98,122.93,13.33662298]
[1769358605122,4.265906,122.98,122.95,5.20240509]
[1769358605626,5.20240509,123.0,122.95,5.20240509]
[1769358605793,4.265906,122.99,122.94,9.59943525]
[1769358606198,4.265906,122.99,122.95,5.20240509]
[1769358606429,4.265906,122.99,122.96,5.20240509]
[1769358606716,9.46831109,122.97,122.91,4.39703016]
[1769358606917,4.265906,122.97,122.93,4.39703016]
[1769358607088,4.265906,122.97,122.93,9.59943525]
[1769358607607,4.265906,122.97,122.9,20.34108696]
[1769358607788,9.46831109,122.95,122.9,12.53335105]
[1769358608000,4.265906,122.93,122.88,5.20240509]
[1769358608198,9.46831109,122.93,122.88,17.73727929]
[1769358608425,4.265906,122.93,122.88,17.73727929]
[1769358608614,4.265906,122.93,122.89,5.20240509]
[1769358608815,4.265906,122.94,122.9,5.20240509]
[1769358609015,5.34408856,122.99,122.88,5.20240509]
[1769358609016,9.46831109,122.93,122.88,5.20240509]
[1769358609207,4.265906,122.92,122.88,5.20240509]
[1769358610527,4.265906,122.92,122.88,9.59943525]
[1769358611224,4.265906,122.95,122.9,9.59943525]
[1769358611541,4.265906,122.96,122.92,5.20240509]
[1769358611827,4.265906,122.98,122.93,5.20240509]
[1769358612040,4.265906,122.97,122.92,9.59943525]
[1769358612415,4.265906,122.97,122.93,5.20240509]
[1769358612618,4.265906,122.96,122.92,5.20240509]
[1769358612818,4.265906,122.96,122.93,5.20240509]
[1769358613230,4.265906,122.97,122.93,5.20240509]
[1769358613415,4.265906,122.99,122.95,5.20240509]
[1769358614318,9.46831109,122.99,122.94,5.20240509]
[1769358614633,4.265906,122.98,122.94,5.20240509]
[1769358616032,9.49627265,123.0,122.95,5.20240509]
[1769358616232,4.29386756,122.99,122.95,5.20240509]
[1769358617331,4.29386756,122.98,122.94,5.20240509]
[1769358617640,25.52363691,123.03,122.91,4.11122276]
[1769358617641,4.29386756,122.96,122.91,4.11122276]
[1769358617823,4.29386756,122.96,122.92,5.20240509]
[1769358618909,4.29386756,122.96,122.93,5.20240509]
[1769358619110,4.29386756,122.93,122.86,4.11122276]
[1769358619317,4.29386756,122.91,122.87,8.1384105]
[1769358619521,4.29386756,122.91,122.87,13.34081559]
[1769358619921,4.29386756,122.91,122.88,5.20240509]
[1769358620316,4.29386756,122.95,122.9,9.31362785]
[1769358620519,4.29386756,122.97,122.92,9.31362785]
[1769358620729,4.29386756,122.97,122.93,5.20240509]
[1769358621028,4.29386756,122.97,122.94,5.20240509]
[1769358621556,4.29386756,122.95,122.92,5.20240509]
[1769358621838,4.29386756,122.95,122.93,5.20240509]
[1769358622214,4.29386756,122.97,122.94,5.20240509]
[1769358622615,4.29386756,122.98,122.94,5.20240509]
[1769358623820,4.29386756,122.98,122.95,5.20240509]
[1769358624020,4.29386756,122.98,122.93,12.24589514]
[1769358624021,4.29386756,122.98,122.94,5.20240509]
[1769358625438,4.29386756,122.98,122.95,5.20240509]
[1769358625638,4.29386756,123.0,122.96,5.20240509]
[1769358626537,4.29386756,122.98,122.94,5.20240509]
[1769358627044,4.29386756,122.97,122.92,13.33758812]
[1769358627442,4.29386756,122.97,122.93,12.24588261]
[1769358627749,25.52265218,123.03,122.93,12.24588261]
[1769358627750,4.29386756,122.99,122.95,5.20240509]
[1769358628322,4.29386756,122.99,122.96,5.20240509]
[1769358628845,4.29386756,122.99,122.95,5.20240509]
[1769358629941,4.29386756,122.99,122.96,5.20240509]
[1769358633449,4.39757057,123.01,122.98,5.20240509]
[1769358634158,4.39757057,123.01,122.97,5.20240509]
[1769358634342,4.39757057,123.01,122.98,5.20240509]
[1769358634723,9.59997566,123.03,122.98,5.20240509]
[1769358635024,4.39757057,123.02,122.98,9.26396375]
[1769358635441,30.70649772,123.06,122.97,5.20240509]
[1769358635442,9.59997566,123.01,122.97,5.20240509]
[1769358635728,4.39757057,123.0,122.97,5.20240509]
[1769358636030,9.59997566,123.02,122.97,5.20240509]
[1769358636227,4.39757057,123.02,122.97,9.26396375]
[1769358636428,4.39757057,123.02,122.97,17.39596065]
[1769358636726,5.20240509,123.03,122.98,9.26396375]
[1769358636936,4.39757057,123.02,122.98,9.26396375]
[1769358637347,4.39757057,123.04,123.0,5.20240509]
[1769358638050,4.39757057,123.04,122.98,12.19296165]
[1769358638227,4.39757057,123.03,122.99,5.20240509]
[1769358638427,4.39757057,123.03,123.0,5.20240509]
[1769358639166,4.39757057,123.05,123.01,5.20240509]
[1769358640039,4.39757057,123.05,123.02,5.20240509]
[1769358640229,4.39757057,123.07,123.03,5.20240509]
[1769358640535,4.77434547,123.08,123.04,5.20240509]
[1769358640940,4.39757057,123.07,123.04,5.20240509]
[1769358641334,4.39757057,123.07,123.03,9.26396375]
[1769358642148,4.39757057,123.07,123.03,4.06155866]
[1769358642350,4.39757057,123.07,123.03,9.26396375]
[1769358643131,4.39757057,123.04,123.0,5.20240509]
[1769358643446,4.39757057,123.06,123.02,5.20240509]
[1769358644154,4.39757057,123.06,123.01,12.1909136]
[1769358644155,4.39757057,123.05,123.01,9.26396375]
[1769358645048,4.39757057,123.05,123.01,17.39326571]
[1769358645227,4.39757057,123.07,123.03,5.20240509]
[1769358645630,4.39757057,123.06,123.0,4.06155866]
[1769358645835,4.39757057,123.05,123.01,5.20240509]
[1769358646049,4.39757057,123.05,123.01,9.26396375]
[1769358646247,4.77434547,123.08,123.04,9.26396375]
[1769358646552,4.77434547,123.08,123.05,5.20240509]